bitfinex/quotes_ETHUSD_20250904
["timestamp","ask_amount","ask_price","bid_price","bid_amount"]
[1756966495768,9.25095371,4384.9,4384.8,0.029]
[1756966496072,16.27095371,4384.9,4384.8,0.029]
[1756966496676,16.27095371,4384.9,4384.8,0.7623]
[1756966496982,25.18225793,4384.9,4384.8,1.2588]
[1756966497187,25.49105793,4384.9,4384.8,0.029]
[1756966497499,33.06110844,4384.9,4383.8,0.950705]
[1756966497792,9.02570422,4383.9,4383.8,0.950705]
[1756966498005,12.88070422,4383.9,4383.8,0.950705]
[1756966498165,15.16177814,4383.9,4383.8,1.251405]
[1756966498369,6.25047392,4383.9,4383.8,1.251405]
[1756966498686,15.16177814,4383.9,4383.8,1.251405]
[1756966498871,6.25047392,4383.9,4383.8,1.251405]
[1756966499200,3.9694,4383.9,4383.8,1.251405]
[1756966499717,0.1144,4383.9,4383.8,1.251405]
[1756966499868,3.9694,4383.9,4383.8,1.251405]
[1756966501614,15.16177814,4383.9,4383.8,1.251405]
[1756966501912,12.88070422,4383.9,4383.8,1.251405]
[1756966502523,15.16177814,4383.9,4383.8,1.251405]
[1756966502821,15.16177814,4383.9,4383.8,0.021605]
[1756966503112,15.16177814,4383.9,4383.8,0.335505]
[1756966505529,10.50288488,4383.9,4383.8,0.021605]
[1756966505710,19.4141891,4383.9,4383.8,0.021605]
[1756966506032,18.6516891,4383.9,4383.8,0.021605]
[1756966506235,18.9414891,4383.9,4383.8,0.021605]
[1756966506437,19.4131891,4383.9,4383.8,0.021605]
[1756966506733,19.8632891,4383.9,4383.8,0.021605]
[1756966508406,21.01741706,4383.9,4383.8,0.021605]
[1756966511427,28.03741706,4383.9,4383.8,0.021605]
[1756966516439,12.90638488,4383.9,4383.8,0.786105]
[1756966516634,16.76238488,4383.9,4383.8,0.786105]
[1756966517364,16.76238488,4383.9,4383.8,0.021605]
[1756966517565,27.2271891,4383.9,4383.8,0.021605]
[1756966517769,28.03941706,4383.9,4383.8,0.021605]
[1756966517928,28.03941706,4383.9,4383.8,1e-08]
[1756966519076,28.40215402,4383.9,4383.8,1e-08]
[1756966519774,28.40315402,4383.9,4383.8,1e-08]
[1756966521258,21.38315402,4383.9,4383.8,1e-08]
[1756966527892,0.792,4383.7,4382.8,0.029]
[1756966528102,5.39594232,4383.0,4382.8,0.029]
[1756966528278,6.07359437,4382.9,4382.8,1e-08]
[1756966528468,7.28937025,4382.9,4382.8,1e-08]
[1756966528670,8.50097025,4382.9,4382.8,1e-08]
[1756966529490,8.05087025,4382.9,4382.8,1e-08]
[1756966530390,5.77250533,4382.9,4382.8,0.73690001]
[1756966530594,9.73990533,4382.9,4382.8,1.22960001]
[1756966531303,9.73990533,4382.9,4382.8,0.30610001]
[1756966531516,9.73990533,4382.9,4382.8,1e-08]
[1756966532217,11.18133329,4382.9,4382.8,1e-08]
[1756966533084,12.09713329,4382.9,4382.8,1e-08]
[1756966533286,19.11713329,4382.9,4382.8,1e-08]
[1756966533493,18.68663329,4382.9,4382.8,1e-08]
[1756966533714,19.11713329,4382.9,4382.8,1e-08]
[1756966535937,2.2820109,4382.1,4381.8,0.025]
[1756966536114,2.28211506,4381.9,4381.8,1e-08]
[1756966536441,6.67942602,4381.9,4381.8,1e-08]
[1756966536587,6.67942602,4381.9,4381.8,0.30610001]
[1756966536787,6.67942602,4381.9,4381.8,1e-08]
[1756966537592,2.28227131,4381.6,4381.5,0.4308]
[1756966537800,18.65488649,4381.6,4381.5,0.4308]
[1756966538007,18.65488649,4381.6,4381.5,0.7369]
[1756966538617,18.65488649,4381.6,4381.5,1.2296]
[1756966538618,18.65388649,4381.6,4381.5,1.2296]
[1756966539600,18.65388649,4381.6,4381.5,0.3061]
[1756966540431,2.28247968,4381.2,4381.1,0.4927]
[1756966540728,2.28263598,4380.9,4380.8,0.029]
[1756966541047,6.25203598,4380.9,4380.8,0.029]
[1756966541194,6.25203598,4380.9,4380.8,0.9525]
[1756966541503,6.25203598,4380.9,4380.8,1.2586]
[1756966542496,6.25203598,4380.9,4380.8,0.8278]
[1756966542497,15.1633402,4380.9,4380.8,0.8278]
[1756966542802,18.52546816,4380.9,4380.8,0.3351]
[1756966543739,18.52546816,4380.9,4380.8,0.029]
[1756966543901,19.60476816,4380.9,4380.8,0.029]
[1756966545499,21.59959507,4380.9,4380.8,0.029]
[1756966545699,5.75916394,4380.9,4380.8,0.3351]
[1756966545911,9.25003598,4380.9,4380.8,1.2586]
[1756966547634,9.25003598,4380.9,4380.8,0.8278]
[1756966548200,10.30679728,4380.9,4380.8,0.029]
[1756966548404,9.53733598,4380.9,4380.8,0.029]
[1756966548842,9.53733598,4380.9,4379.1,2.28356354]
[1756966548843,3.0,4380.8,4379.1,0.4927]
[1756966549043,5.28346996,4379.3,4379.1,0.9235]
[1756966549256,2.28367854,4378.9,4378.8,0.025]
[1756966549419,6.16167854,4378.9,4378.8,0.025]
[1756966549751,6.16267854,4378.9,4378.8,0.3311]
[1756966549919,6.16267854,4378.9,4378.8,1.2546]
[1756966550613,1.755,4379.2,4378.8,1.2546]
[1756966550814,3.879,4379.1,4378.9,0.9235]
[1756966551139,6.16257555,4379.1,4378.9,0.9235]
[1756966551434,2.28367854,4378.9,4378.8,0.025]
[1756966551639,6.16167854,4378.9,4378.8,0.025]
[1756966551808,6.16167854,4378.9,4378.8,1.2546]
[1756966552437,3.878,4378.9,4378.8,1.2546]
[1756966552942,4.03852294,4379.2,4378.8,1.2546]
[1756966553144,1.755,4379.2,4378.9,0.9235]
[1756966553344,1.755,4379.2,4379.0,0.9235]
[1756966553543,1.755,4379.2,4378.8,0.025]
[1756966553544,4.03852781,4379.2,4379.1,1.2296]
[1756966553726,5.634,4379.2,4379.1,1.2296]
[1756966554243,7.9175221,4379.2,4379.1,1.2296]
[1756966555311,5.634,4379.2,4379.1,1.2296]
[1756966556313,7.9175221,4379.2,4379.1,1.2296]
[1756966556742,5.634,4379.2,4379.1,0.7988]
[1756966556955,7.9175221,4379.2,4379.1,1.2296]
[1756966557222,7.9165221,4379.2,4379.1,1.2296]
[1756966557425,5.633,4379.2,4379.1,1.2296]
[1756966557622,7.9165221,4379.2,4379.1,1.2296]
[1756966557925,5.633,4379.2,4379.1,1.2296]
[1756966558249,5.631,4379.2,4379.1,1.2296]
[1756966558743,5.63,4379.2,4379.1,0.7988]
[1756966558915,5.7444,4379.2,4379.1,1.2296]
[1756966561361,8.0279221,4379.2,4379.1,0.3061]
[1756966561932,5.7444,4379.2,4379.1,0.3061]
[1756966562133,8.0279221,4379.2,4379.1,0.3061]
[1756966563864,2.28359733,4379.1,4378.8,0.029]
[1756966564071,3.872,4379.0,4378.8,0.029]
[1756966564258,3.9864,4378.9,4378.8,0.029]
[1756966564762,6.27007854,4378.9,4378.8,0.029]
[1756966564969,6.27007854,4378.9,4378.8,0.3309]
[1756966565460,6.27007854,4378.9,4378.8,0.029]
[1756966565775,6.58647854,4378.9,4378.8,0.029]
[1756966566073,2.39807854,4378.9,4378.8,0.029]
[1756966566270,2.39807854,4378.9,4378.8,0.3309]
[1756966566438,6.27007854,4378.9,4378.8,0.3309]
[1756966567345,3.9864,4378.9,4378.8,0.3309]
[1756966567759,6.27007854,4378.9,4378.8,0.3309]
[1756966567962,6.27107854,4378.9,4378.8,0.3309]
[1756966568340,3.9864,4378.9,4378.8,1.2446]
[1756966570164,0.1144,4378.9,4378.8,1.2446]
[1756966570388,3.9854,4378.9,4378.8,1.2446]
[1756966570541,0.1144,4378.9,4378.8,1.59743601]
[1756966570742,0.1144,4379.3,4378.8,1.59743601]
[1756966570949,0.1144,4379.3,4379.0,2.28358449]
[1756966571175,0.1144,4379.3,4378.9,0.9137]
[1756966571489,0.1144,4379.0,4378.8,0.029]
[1756966571769,3.9864,4379.0,4378.9,0.3019]
[1756966572274,0.1144,4379.0,4378.9,1.2156]
[1756966573081,0.1144,4379.0,4378.9,1.56843161]
[1756966573289,0.1144,4379.0,4378.9,3.49927854]
[1756966574761,3.871,4379.5,4379.4,2.28341781]
[1756966574959,3.871,4379.8,4379.4,3.49901781]
[1756966575280,0.1144,4379.5,4379.4,0.3019]
[1756966575688,0.1144,4379.5,4379.4,0.7568]
[1756966576079,0.1144,4379.5,4379.4,0.3019]
[1756966576470,0.1144,4379.5,4379.4,1.2156]
[1756966577572,0.1144,4379.5,4379.4,3.49901781]
[1756966579179,0.1144,4379.5,4379.4,1.2156]
[1756966579801,0.1144,4379.5,4379.4,3.49901781]
[1756966580002,0.1144,4379.5,4379.4,1.2156]
[1756966580316,0.1144,4379.5,4379.4,3.49901781]
[1756966580531,0.001,4380.0,4379.9,2.28315714]
[1756966580691,0.001,4380.0,4379.9,13.18928827]
[1756966580879,0.001,4380.0,4379.9,15.31128827]
[1756966581080,0.001,4380.0,4379.9,4.7402]
[1756966581280,0.001,4380.0,4379.9,5.0846]
[1756966581521,0.001,4380.0,4379.9,0.3019]
[1756966582193,1.265,4380.0,4379.3,0.4549]
[1756966582522,1.265,4380.0,4379.0,2.28362328]
[1756966582523,0.1144,4379.7,4379.0,2.28362328]
[1756966582759,0.1144,4379.4,4379.1,2.28357007]
[1756966582884,0.1144,4379.4,4379.3,0.3019]
[1756966583584,0.1144,4379.4,4379.0,2.28358788]
[1756966583585,0.1144,4379.4,4378.9,7.90866678]
[1756966583784,0.1144,4379.4,4379.0,2.28362116]
[1756966584012,0.1144,4379.4,4379.0,2.73852116]
[1756966584411,0.1144,4379.4,4379.0,0.4549]
[1756966584596,0.1144,4379.4,4379.0,2.73848143]
[1756966584805,0.1144,4379.4,4379.1,2.28356973]
[1756966585006,0.1144,4379.4,4379.0,3.1973151]
[1756966585209,0.1144,4379.4,4379.0,2.7385151]
[1756966585824,0.1144,4379.4,4378.8,0.20092334]
[1756966585825,0.4308,4379.1,4378.8,0.029]
[1756966586322,0.1144,4379.1,4378.8,0.029]
[1756966586498,0.1144,4379.1,4379.0,0.3019]
[1756966587485,0.1144,4379.1,4378.8,0.029]
[1756966589327,0.3164,4378.9,4378.8,0.029]
[1756966590202,0.7772,4378.9,4378.8,0.029]
[1756966591115,0.3164,4378.9,4378.8,0.029]
[1756966591621,0.1144,4379.1,4378.9,2.28363214]
[1756966591788,0.1144,4379.1,4379.0,1.60197321]
[1756966591988,0.1144,4379.1,4379.0,3.8855996]
[1756966592901,0.1144,4379.4,4379.0,3.8855996]
[1756966593212,0.1144,4379.4,4379.2,2.2835221]
[1756966593414,1.756,4380.0,4379.3,2.28346429]
[1756966593719,1.756,4380.0,4379.4,1.28159643]
[1756966593720,0.1144,4379.8,4379.4,1.28159643]
[1756966593893,0.1144,4379.8,4379.4,0.82269643]
[1756966594227,0.1144,4379.8,4379.2,0.1144]
[1756966594228,0.3036,4379.5,4379.2,0.1144]
[1756966594428,0.1144,4379.4,4378.9,3.865]
[1756966594731,0.5752,4379.4,4378.9,3.865]
[1756966594885,0.4608,4379.4,4378.5,0.66584395]
[1756966595090,0.1144,4378.9,4378.5,4.53084395]
[1756966596301,0.418,4378.9,4378.5,6.14888618]
[1756966597648,0.1144,4378.9,4378.5,6.14888618]
[1756966597923,1.3538,4378.9,4378.3,0.004]
[1756966598135,3.63747854,4378.9,4378.3,0.004]
[1756966601307,3.6430635,4378.9,4378.3,0.004]
[1756966601710,6.6430635,4378.9,4378.3,0.004]
[1756966601912,6.63747854,4378.9,4378.3,0.004]
[1756966604928,3.418,4378.9,4378.3,0.004]
[1756966605098,9.56467854,4378.9,4378.3,0.004]
[1756966605296,5.70167854,4378.9,4378.3,0.004]
[1756966605500,9.26007854,4378.9,4378.3,0.004]
[1756966607034,9.56367854,4378.9,4378.3,0.004]
[1756966607634,10.49947854,4378.9,4378.3,0.004]
[1756966608225,9.56367854,4378.9,4378.3,0.004]
[1756966608938,10.02447854,4378.9,4378.3,0.004]
[1756966609126,9.56367854,4378.9,4378.3,0.004]
[1756966611618,9.26007854,4378.9,4378.3,0.004]
[1756966611814,9.26007854,4378.9,4378.8,0.3176]
[1756966612026,6.9724,4378.9,4378.8,0.3176]
[1756966612226,9.25607854,4378.9,4378.8,0.3176]
[1756966612945,9.25607854,4378.9,4378.8,0.029]
[1756966613151,9.25507854,4378.9,4378.8,0.3176]
[1756966613347,3.1144,4378.9,4378.8,0.3176]
[1756966613507,6.9714,4378.9,4378.8,0.3176]
[1756966613846,3.1144,4378.9,4378.8,0.3176]
[1756966614021,9.25407854,4378.9,4378.8,0.3176]
[1756966614952,9.25407854,4378.9,4378.8,0.029]
[1756966615108,9.55767854,4378.9,4378.8,0.029]
[1756966616036,9.25407854,4378.9,4378.8,0.3176]
[1756966617446,6.9704,4378.9,4378.8,0.3176]
[1756966617649,3.9694,4378.9,4378.8,0.7765]
[1756966619327,0.1144,4378.9,4378.8,1.08253173]
[1756966619503,0.1144,4378.9,4378.8,3.0602307]
[1756966619940,0.1144,4378.9,4378.8,0.3176]
[1756966620422,0.1144,4378.9,4378.8,0.7608]
[1756966622009,0.1144,4378.9,4378.8,3.0445307]
[1756966623531,0.1144,4378.9,4378.8,0.7608]
[1756966624842,0.1144,4378.9,4378.8,3.3489879]
[1756966625146,0.1144,4379.2,4379.0,2.28362292]
[1756966625349,0.1144,4379.2,4379.1,0.3125]
[1756966625514,0.1144,4379.2,4379.1,0.7557]
[1756966625710,0.1144,4379.2,4379.1,0.3125]
[1756966626041,0.1144,4379.2,4378.8,0.029]
[1756966629453,0.4491,4379.1,4378.8,0.029]
[1756966629616,0.1144,4378.9,4378.8,0.029]
[1756966630352,0.8732,4378.9,4378.8,0.029]
[1756966630552,3.15687854,4378.9,4378.8,0.029]
[1756966632151,3.63697854,4378.9,4378.8,0.029]
[1756966633354,7.49097854,4378.9,4378.8,0.029]
[1756966635732,7.01087854,4378.9,4378.8,0.029]
[1756966636136,7.49097854,4378.9,4378.8,0.029]
[1756966636856,3.63697854,4378.9,4378.8,0.029]
[1756966637043,3.15687854,4378.9,4378.8,0.029]
[1756966637348,7.01087854,4378.9,4378.8,0.029]
[1756966637855,0.4241,4378.9,4378.8,0.029]
[1756966638060,4.2781,4378.9,4378.8,0.029]
[1756966638228,0.1144,4378.9,4378.8,0.8024]
[1756966638733,0.1144,4378.9,4378.8,0.3415]
[1756966638938,0.1144,4378.9,4378.8,0.029]
[1756966639844,0.1144,4378.9,4378.8,0.3415]
[1756966641760,0.1144,4378.9,4378.8,0.029]
[1756966642260,0.8732,4378.9,4378.8,0.029]
[1756966642632,0.1144,4378.9,4378.8,0.029]
[1756966643043,0.1144,4378.9,4378.8,0.3415]
[1756966644460,0.1144,4378.9,4378.8,0.8024]
[1756966644662,0.1144,4378.9,4378.8,1.2456]
[1756966645633,0.1144,4378.9,4378.8,0.3415]
[1756966645828,0.1144,4378.9,4378.8,1.2456]
[1756966646037,0.1144,4378.9,4378.8,3.5293307]
[1756966646248,0.1144,4378.9,4378.8,1.2456]
[1756966646647,0.1144,4378.9,4378.8,3.5293307]
[1756966647048,0.1144,4378.9,4378.8,1.2456]
[1756966647246,0.4241,4378.9,4378.8,0.029]
[1756966647447,1.3533,4378.9,4378.8,0.029]
[1756966647857,0.8732,4378.9,4378.8,0.029]
[1756966648239,0.4241,4378.9,4378.8,0.029]
[1756966648755,0.1144,4378.9,4378.8,0.029]
[1756966648934,0.1144,4378.9,4378.8,0.3415]
[1756966649372,0.1144,4378.9,4378.8,0.8024]
[1756966649754,0.1144,4378.9,4378.8,0.3415]
[1756966649957,0.4241,4378.9,4378.8,0.029]
[1756966650139,0.8938,4378.9,4378.8,0.029]
[1756966650680,0.4241,4378.9,4378.8,0.029]
[1756966651198,0.8938,4378.9,4378.8,0.029]
[1756966651783,1.3659,4378.9,4378.8,0.029]
[1756966652381,0.8938,4378.9,4378.8,0.029]
[1756966656493,0.4241,4378.9,4378.8,0.029]
[1756966656849,1.3659,4378.9,4378.8,0.029]
[1756966657676,0.4241,4378.9,4378.8,0.029]
[1756966658560,0.1144,4378.9,4378.8,0.3262]
[1756966658762,0.1144,4378.9,4378.8,0.029]
[1756966660292,3.9684,4378.9,4378.8,0.3262]
[1756966660474,0.1144,4378.9,4378.8,3.0791307]
[1756966660668,0.1144,4378.9,4378.8,4.07712997]
[1756966661625,0.1144,4378.9,4378.8,3.5408307]
[1756966662817,0.1144,4378.9,4378.8,3.0791307]
[1756966662964,0.1144,4378.9,4378.8,2.6099307]
[1756966664106,0.1144,4378.9,4378.8,0.3262]
[1756966667607,0.1144,4378.9,4378.8,0.029]
[1756966667787,0.4242,4378.9,4378.8,0.029]
[1756966668174,1.366,4378.9,4378.8,0.029]
[1756966673881,0.8939,4378.9,4378.8,0.029]
[1756966676308,4.7469,4378.9,4378.8,0.029]
[1756966677220,4.2772,4378.9,4378.8,0.029]
[1756966677525,3.9664,4378.9,4378.8,1.2571]
[1756966678603,0.1144,4378.9,4378.8,3.5408307]
[1756966678914,0.1144,4379.5,4379.4,2.28337754]
[1756966679113,0.1144,4379.5,4379.4,3.51147754]
[1756966680416,0.1144,4379.5,4379.4,1.2281]
[1756966680624,0.1144,4379.5,4379.4,0.7664]
[1756966681030,0.1144,4379.5,4379.4,2.58061781]
[1756966681591,0.1144,4379.5,4379.4,0.2972]
[1756966681797,0.4179,4379.5,4379.1,2.7699331]
[1756966681995,0.4179,4379.5,4379.2,2.28350322]
[1756966682723,0.4179,4379.5,4378.8,0.26911]
[1756966682898,0.1144,4379.2,4378.8,0.029]
[1756966683104,0.1144,4379.2,4378.8,2.31269118]
[1756966683913,0.1144,4379.2,4378.8,0.029]
[1756966684224,0.1144,4378.9,4378.8,0.029]
[1756966684541,0.1144,4378.9,4378.8,3.1000307]
[1756966684706,0.1144,4378.9,4378.8,1.2822]
[1756966684908,0.1144,4378.9,4378.8,0.3299]
[1756966685737,0.1144,4378.9,4378.8,2.6136307]
[1756966685908,0.1144,4378.9,4378.8,3.1000307]
[1756966686094,0.1144,4378.9,4378.8,3.5659307]
[1756966686298,3.852,4379.4,4378.8,4.32650521]
[1756966686517,0.1144,4379.4,4378.9,0.9523]
[1756966686727,0.1144,4379.4,4379.3,0.3009]
[1756966686934,0.1144,4379.4,4379.1,2.28355038]
[1756966687431,0.1144,4379.4,4379.3,0.3009]
[1756966688531,0.4179,4379.4,4378.8,5.22187451]
[1756966688710,0.4179,4379.4,4379.0,2.28361076]
[1756966688915,0.4179,4379.4,4378.9,2.85449885]
[1756966689136,0.4179,4379.4,4378.9,3.80679885]
[1756966689325,0.4179,4379.4,4379.0,2.2836094]
[1756966690034,0.1144,4379.4,4379.3,2.58436996]
[1756966690333,0.1144,4379.6,4379.5,2.28336568]
[1756966690532,0.1144,4379.6,4379.5,2.58426568]
[1756966690829,0.1144,4379.6,4379.5,3.07066568]
[1756966691407,0.1144,4379.6,4379.5,2.58426568]
[1756966691932,0.1144,4379.6,4379.5,0.3009]
[1756966692140,0.1144,4379.6,4379.3,0.4699]
[1756966692141,0.1144,4379.6,4379.3,2.28742357]
[1756966692311,0.1144,4379.6,4379.4,2.28337574]
[1756966694307,0.1144,4379.6,4379.3,3.01482581]
[1756966694507,0.3035,4379.4,4379.3,0.004]
[1756966696053,0.5581,4379.6,4379.3,0.004]
[1756966696459,0.3035,4379.4,4379.3,0.004]
[1756966698247,0.1144,4379.6,4379.3,0.004]
[1756966699546,0.3035,4379.4,4379.3,0.004]
[1756966701252,1.237,4379.4,4379.3,0.004]
[1756966701653,0.7933,4379.4,4379.3,0.004]
[1756966701856,3.52041781,4379.4,4379.3,0.004]
[1756966702027,1.237,4379.4,4379.3,0.004]
[1756966703861,0.7933,4379.4,4379.3,0.004]
[1756966704049,3.52041781,4379.4,4379.3,0.004]
[1756966706052,0.3035,4379.4,4379.3,0.004]
[1756966706373,1.237,4379.4,4379.3,0.004]
[1756966706952,0.7472,4379.4,4379.3,0.004]
[1756966707772,3.03061781,4379.4,4379.3,0.004]
[1756966708470,3.52041781,4379.4,4379.3,0.004]
[1756966709673,3.52600277,4379.4,4379.3,0.004]
[1756966709968,7.01902961,4379.4,4379.3,0.004]
[1756966710169,7.01344465,4379.4,4379.3,0.004]
[1756966713772,2.28367854,4378.9,4378.8,0.029]
[1756966714073,22.41179656,4378.9,4378.8,0.029]
[1756966714243,23.6306116,4378.9,4378.8,0.029]
[1756966718775,23.9695729,4378.9,4378.8,0.029]
[1756966719583,11.80950538,4378.9,4378.8,0.029]
[1756966719782,12.25040538,4378.9,4378.8,0.029]
[1756966719946,12.72150538,4378.9,4378.8,0.029]
[1756966720148,30.6506116,4378.9,4378.8,0.029]
[1756966723580,26.8006116,4378.9,4378.8,0.029]
[1756966723882,30.6506116,4378.9,4378.8,0.029]
[1756966724583,30.9895729,4378.9,4378.8,0.029]
[1756966726578,2.28388717,4378.5,4378.4,0.004]
[1756966726782,9.24828717,4378.5,4378.4,0.004]
[1756966726960,9.56068717,4378.5,4378.4,0.004]
[1756966727160,10.05378717,4378.5,4378.4,0.004]
[1756966727363,10.49468717,4378.5,4378.4,0.004]
[1756966727560,19.90294904,4378.5,4378.4,0.004]
[1756966729459,18.99094904,4378.5,4378.4,0.004]
[1756966729684,19.43184904,4378.5,4378.4,0.004]
[1756966730184,19.90294904,4378.5,4378.4,0.004]
[1756966730567,20.39431427,4378.5,4378.4,0.004]
[1756966731881,27.75327557,4378.5,4378.4,0.004]
[1756966732787,27.41431427,4378.5,4378.4,0.004]
[1756966733167,6.07593933,4378.4,4378.3,0.004]
[1756966733366,16.75870456,4378.4,4378.3,0.004]
[1756966734282,17.07110456,4378.4,4378.3,0.004]
[1756966734869,16.75870456,4378.4,4378.3,0.004]
[1756966735068,25.69586643,4378.4,4378.3,0.2914]
[1756966735272,12.90970456,4378.4,4378.3,0.2914]
[1756966735478,16.75870456,4378.4,4378.3,1.2423]
[1756966736365,16.75870456,4378.4,4378.3,0.7805]
[1756966736904,16.75870456,4378.4,4378.3,0.2914]
[1756966737871,17.07110456,4378.4,4378.3,0.004]
[1756966738793,10.05110456,4378.4,4378.3,0.004]
[1756966742285,9.73870456,4378.4,4378.3,0.004]
[1756966742914,10.03160456,4378.4,4378.3,0.004]
[1756966743786,9.73870456,4378.4,4378.3,0.004]
[1756966743975,5.88970456,4378.4,4378.3,0.004]
[1756966744177,9.73870456,4378.4,4378.3,0.004]
[1756966744988,10.03160456,4378.4,4378.3,0.004]
[1756966745602,10.94070456,4378.4,4378.3,0.004]
[1756966745825,11.27966586,4378.4,4378.3,0.004]
[1756966747199,20.21682773,4378.4,4378.3,0.004]
[1756966748709,19.78732773,4378.4,4378.3,0.004]
[1756966749004,20.21682773,4378.4,4378.3,0.004]
[1756966755704,27.23682773,4378.4,4378.3,0.004]
[1756966758536,26.75822773,4378.4,4378.3,0.004]
[1756966759630,26.32872773,4378.4,4378.3,0.004]
[1756966759840,13.24966586,4378.4,4378.3,0.3199]
[1756966760134,16.75870456,4378.4,4378.3,0.8059]
[1756966760514,16.75870456,4378.4,4378.3,0.3199]
[1756966760902,16.75870456,4378.4,4378.3,0.004]
[1756966761512,18.51470456,4378.4,4378.3,0.004]
[1756966762534,18.51470456,4378.4,4378.3,0.3199]
[1756966763816,18.51370456,4378.4,4378.3,0.3199]
[1756966764147,18.51370456,4378.4,4378.3,0.004]
[1756966765319,18.51370456,4378.4,4378.3,0.3199]
[1756966765523,27.45086643,4378.4,4378.3,0.3199]
[1756966766419,27.45086643,4378.4,4378.3,0.004]
[1756966768254,28.17326643,4378.4,4378.3,0.004]
[1756966768818,28.65286643,4378.4,4378.3,0.004]
[1756966769135,28.99182773,4378.4,4378.3,0.004]
[1756966770450,29.44486643,4378.4,4378.3,1e-08]
[1756966770661,29.44486643,4378.4,4377.9,0.004]
[1756966770662,5.28404367,4378.2,4377.9,0.004]
[1756966770823,12.05156187,4378.0,4377.9,0.004]
[1756966771024,12.8413271,4378.0,4377.9,0.004]
[1756966771328,19.13537511,4378.0,4377.9,0.7664]
[1756966771548,10.19821324,4378.0,4377.9,1.2244]
[1756966772161,3.35121324,4378.0,4377.9,1.2244]
[1756966772350,7.19821324,4378.0,4377.9,1.2244]
[1756966775566,3.35121324,4378.0,4377.9,1.2244]
[1756966775766,7.19721324,4378.0,4377.9,1.2244]
[1756966776346,0.60576523,4378.0,4377.9,1.2244]
[1756966776656,6.24454801,4378.0,4377.9,1.34974]
[1756966777366,6.24454801,4378.0,4377.9,1.2244]
[1756966779976,6.24454801,4378.0,4377.9,0.7664]
[1756966780554,6.24454801,4378.0,4377.9,1.2244]
[1756966784845,0.1144,4378.0,4377.9,1.2244]
[1756966785040,3.9594,4378.0,4377.9,1.2244]
[1756966785234,3.9594,4378.0,4377.9,2.87189046]
[1756966785464,3.9594,4378.0,4377.9,1.2244]
[1756966786176,3.9594,4378.0,4377.9,0.7664]
[1756966786877,3.9594,4378.0,4377.9,1.2244]
[1756966788339,3.9594,4378.0,4377.9,0.7664]
[1756966788740,3.9594,4378.0,4377.9,0.3051]
[1756966789136,3.9594,4378.0,4377.9,0.7664]
[1756966789336,3.9594,4378.0,4377.9,1.2244]
[1756966789544,3.9594,4378.0,4377.9,1.74974]
[1756966790070,0.1144,4378.0,4377.9,1.74974]
[1756966796082,0.1144,4378.0,4377.9,7.87794018]
[1756966796585,0.001,4378.3,4378.1,2.28406243]
[1756966796960,0.001,4378.3,4378.2,5.0644]
[1756966797175,0.001,4378.3,4378.2,6.09204026]
[1756966798261,0.001,4378.3,4378.2,8.37608393]
[1756966799258,0.001,4378.3,4378.2,8.49048393]
[1756966800183,0.001,4378.3,4378.2,8.60588393]
[1756966800386,0.001,4378.3,4378.2,20.31248464]
[1756966800690,0.001,4378.3,4378.2,23.31248464]
[1756966800853,0.001,4378.4,4378.3,6.0759915]
[1756966801061,0.001,4378.4,4378.3,9.26179947]
[1756966801287,0.001,4378.4,4378.3,9.56099947]
[1756966803286,0.001,4378.4,4378.3,8.32039947]
[1756966803506,0.001,4378.4,4378.3,9.8954915]
[1756966803702,0.001,4378.4,4378.3,0.2992]
[1756966804003,0.3151,4378.4,4378.3,3.843]
[1756966804201,0.001,4378.4,4378.3,3.843]
[1756966804352,1.3975,4378.4,4378.1,0.1154]
[1756966804554,1.3975,4378.4,4378.0,3.843]
[1756966804555,0.3151,4378.4,4378.0,3.843]
[1756966804765,0.1144,4378.1,4378.0,3.843]
[1756966805184,0.4285,4378.1,4378.0,3.843]
[1756966805565,0.4285,4378.1,4377.9,0.004]
[1756966805754,0.4285,4378.1,4377.9,3.846]
[1756966805955,0.4743,4378.0,4377.9,3.846]
[1756966806173,0.7884,4378.0,4377.9,3.846]
[1756966806767,0.1144,4378.1,4377.9,3.846]
[1756966807193,0.4753,4378.4,4378.0,3.05264801]
[1756966807194,0.1154,4378.4,4378.0,3.05264801]
[1756966807501,0.1154,4378.4,4378.1,6.12609292]
[1756966807853,0.1154,4378.4,4378.3,0.2992]
[1756966808067,0.1154,4378.4,4378.3,4.1412]
[1756966808268,0.4295,4378.4,4378.3,3.842]
[1756966808569,1.3975,4378.4,4378.3,3.842]
[1756966808901,1.3975,4378.4,4378.0,3.842]
[1756966809207,0.9038,4378.4,4378.0,3.842]
[1756966809699,0.9038,4378.4,4378.0,5.03352373]
[1756966809700,0.4295,4378.4,4378.0,5.03352373]
[1756966809896,0.9038,4378.4,4378.0,5.03352373]
[1756966810102,0.9038,4378.4,4378.0,1.19152373]
[1756966810272,0.9038,4378.4,4378.0,5.03352373]
[1756966810803,0.4295,4378.4,4378.0,5.03352373]
[1756966810972,0.4295,4378.4,4378.1,0.9106721]
[1756966811173,0.4295,4378.4,4378.0,5.03352373]
[1756966811401,0.4743,4378.3,4378.0,5.03352373]
[1756966811706,0.3141,4378.1,4378.0,5.03352373]
[1756966812013,1.2821,4378.1,4377.9,0.004]
[1756966812199,1.3965,4378.1,4377.9,0.004]
[1756966812384,0.4285,4378.1,4377.9,0.004]
[1756966812703,0.1144,4378.1,4377.9,0.004]
[1756966815179,0.1144,4378.1,4378.0,2.60618949]
[1756966815396,0.1144,4378.2,4378.0,5.88744898]
[1756966815602,0.1144,4378.2,4378.0,6.33604898]